lending/lending_fUSD_20250917
["ID","MTS","AMOUNT","RATE_DAILY","PERIOD"]
[385930592,1758136294950,-400.0,0.00024719,2]
[385930593,1758136294960,-400.0,0.00024719,2]
[385930594,1758136294969,-300.0,0.00024719,2]
[385930595,1758136294979,-400.0,0.00024719,2]
[385930596,1758136294988,-400.0,0.00024719,2]
[385930597,1758136294997,-400.0,0.00024719,2]
[385930598,1758136295007,-400.0,0.00024719,2]
[385930599,1758136295016,-400.0,0.00024719,2]
[385930600,1758136295026,-400.0,0.00024719,2]
[385930601,1758136295037,-400.0,0.00024719,2]
[385930602,1758136295046,-500.65,0.00024719,2]
[385930603,1758136295055,-488.54,0.00024719,2]
[385930604,1758136295064,-400.0,0.00024719,2]
[385930605,1758136295074,-400.0,0.00024719,2]
[385930606,1758136295083,-400.0,0.00024719,2]
[385930607,1758136295092,-400.0,0.00024719,2]
[385930608,1758136295102,-535.36,0.00024719,2]
[385930609,1758136295111,-446.32,0.00024719,2]
[385930610,1758136295121,-400.0,0.00024719,2]
[385930611,1758136295130,-400.0,0.00024719,2]
[385930612,1758136295139,-400.0,0.00024719,2]
[385930613,1758136295148,-400.0,0.00024719,2]
[385930614,1758136295158,-400.0,0.00024719,2]
[385930615,1758136295167,-400.0,0.00024719,2]
[385930616,1758136295177,-400.0,0.00024719,2]
[385930617,1758136295187,-400.0,0.00024719,2]
[385930618,1758136295196,-250.00915738,0.00024719,2]
[385930619,1758136295206,-400.0,0.00024719,2]
[385930620,1758136295216,-408.76698795,0.00024719,2]
[385930621,1758136295225,-400.0,0.00024719,2]
[385930622,1758136295235,-597.52,0.00024719,2]
[385930623,1758136295244,-400.0,0.00024719,2]
[385930624,1758136295253,-400.0,0.00024719,2]
[385930625,1758136295262,-400.0,0.00024719,2]
[385930626,1758136295271,-400.0,0.00024719,2]
[385930627,1758136295280,-400.0,0.00024719,2]
[385930628,1758136295289,-400.0,0.00024719,2]
[385930629,1758136295305,-263.80505706,0.00024719,2]
[385930630,1758136295323,-400.0,0.00024719,2]
[385930631,1758136295338,-400.0,0.00024719,2]
[385930632,1758136295355,-400.0,0.00024719,2]
[385930633,1758136295372,-400.0,0.00024719,2]
[385930634,1758136295385,-400.0,0.00024719,2]
[385930635,1758136295402,-382.99314564,0.00024719,2]
[385930636,1758136295422,-412.00817068,0.00024719,2]
[385930637,1758136295442,-400.0,0.00024719,2]
[385930638,1758136295460,-400.0,0.00024719,2]
[385930639,1758136295476,-400.0,0.00024719,2]
[385930640,1758136295492,-400.0,0.00024719,2]
[385930641,1758136295510,-400.0,0.00024719,2]
[385930642,1758136295531,-250.68375493,0.00024719,2]
[385930643,1758136295546,-400.0,0.00024719,2]
[385930644,1758136295562,-408.89147762,0.00024719,2]
[385930645,1758136295574,-400.0,0.00024719,2]
[385930646,1758136295591,-400.0,0.00024719,2]
[385930647,1758136295603,-400.0,0.00024719,2]
[385930648,1758136295618,-400.0,0.00024719,2]
[385930649,1758136295633,-405.82,0.00024719,2]
[385930650,1758136295648,-400.0,0.00024719,2]
[385930651,1758136295662,-400.0,0.00024719,2]
[385930652,1758136295685,-400.0,0.00024719,2]
[385930653,1758136295699,-400.0,0.00024719,2]
[385930654,1758136295715,-400.0,0.00024719,2]
[385930655,1758136295730,-400.0,0.00024719,2]
[385930656,1758136295745,-400.0,0.00024719,2]
[385930657,1758136295760,-400.0,0.00024719,2]
[385930658,1758136295774,-400.0,0.00024719,2]
[385930659,1758136295787,-400.0,0.00024719,2]
[385930660,1758136295801,-500.51518235,0.00024719,2]
[385930661,1758136295815,-400.0,0.00024719,2]
[385930662,1758136295830,-400.0,0.00024719,2]
[385930663,1758136295844,-400.0,0.00024719,2]
[385930664,1758136295858,-526.63072466,0.00024719,2]
[385930665,1758136295872,-400.0,0.00024719,2]
[385930666,1758136295886,-455.94988598,0.00024719,2]
[385930667,1758136295901,-400.0,0.00024719,2]
[385930668,1758136295914,-400.0,0.00024719,2]
[385930669,1758136295928,-400.0,0.00024719,2]
[385930670,1758136295941,-400.0,0.00024719,2]
[385930671,1758136295955,-400.0,0.00024719,2]
[385930672,1758136295969,-327.9887474,0.00024719,2]
[385930673,1758136295982,-400.0,0.00024719,2]
[385930674,1758136295995,-400.0,0.00024719,2]
[385930675,1758136296008,-400.0,0.00024719,2]
[385930676,1758136296022,-400.0,0.00024719,2]
[385930677,1758136296035,-400.0,0.00024719,2]
[385930678,1758136296049,-456.36,0.00024719,2]
[385930679,1758136296062,-400.0,0.00024719,2]
[385930680,1758136296076,-768.57,0.00024719,2]
[385930681,1758136296090,-421.03988291,0.00024719,2]
[385930682,1758136296103,-400.0,0.00024719,2]
[385930683,1758136296117,-400.0,0.00024719,2]
[385930684,1758136296130,-400.0,0.00024719,2]
[385930685,1758136296143,-400.0,0.00024719,2]
[385930686,1758136296156,-400.0,0.00024719,2]
[385930687,1758136296170,-400.0,0.00024719,2]
[385930688,1758136296186,-400.0,0.00024719,2]
[385930689,1758136296200,-400.0,0.00024719,2]
[385930690,1758136296213,-400.0,0.00024719,2]
[385930691,1758136296227,-410.48,0.00024719,2]
[385930692,1758136296241,-400.0,0.00024719,2]
[385930693,1758136296254,-400.0,0.00024719,2]
[385930694,1758136296268,-400.0,0.00024719,2]
[385930695,1758136296281,-2353.1,0.00024719,2]
[385930696,1758136296294,-608.636498,0.0002472,2]
[385930697,1758136296307,-500.0,0.0002472,2]
[385930698,1758136296320,-400.0,0.0002472,2]
[385930699,1758136296333,-1177.51,0.0002472,2]
[385930700,1758136296346,-1833.81,0.0002472,2]
[385930701,1758136296361,-400.0,0.0002472,2]
[385930702,1758136296375,-431.7,0.0002472,2]
[385930703,1758136296389,-541.31,0.0002472,2]
[385930704,1758136296402,-719.5,0.0002472,2]
[385930705,1758136296416,-400.0,0.0002472,2]
[385930706,1758136296431,-400.0,0.0002472,2]
[385930707,1758136296445,-1785.58,0.0002472,2]
[385930708,1758136296454,-500.0,0.0002472,2]
[385930709,1758136296463,-503.83,0.0002472,2]
[385930710,1758136296473,-500.0,0.0002472,2]
[385930711,1758136296482,-500.0,0.0002472,2]
[385930712,1758136296492,-500.0,0.0002472,2]
[385930713,1758136296501,-500.0,0.0002472,2]
[385930714,1758136296511,-500.0,0.0002472,2]
[385930715,1758136296521,-500.0,0.0002472,2]
[385930716,1758136296530,-400.0,0.0002472,2]
[385930717,1758136296539,-400.0,0.0002472,2]
[385930718,1758136296548,-400.0,0.0002472,2]
[385930719,1758136296557,-450.05,0.0002472,2]
[385930720,1758136296567,-3652.53,0.0002472,2]
[385930721,1758136296576,-400.0,0.0002472,2]
[385930722,1758136296585,-400.0,0.0002472,2]
[385930723,1758136296594,-400.0,0.0002472,2]
[385930724,1758136296603,-400.0,0.0002472,2]
[385930725,1758136296612,-503.98,0.0002472,2]
[385930726,1758136296621,-400.0,0.0002472,2]
[385930727,1758136296631,-483.65,0.0002472,2]
[385930728,1758136296640,-400.0,0.0002472,2]
[385930729,1758136296650,-724.19,0.0002472,2]
[385930730,1758136296659,-400.0,0.0002472,2]
[385930731,1758136296669,-802.31,0.0002472,2]
[385930732,1758136296681,-477.1,0.0002472,2]
[385930733,1758136296690,-622.79,0.0002472,2]
[385930734,1758136296699,-874.22,0.0002472,2]
[385930735,1758136296708,-729.14,0.0002472,2]
[385930736,1758136296717,-584.69,0.0002472,2]
[385930737,1758136296726,-944.29,0.0002472,2]
[385930738,1758136296735,-460.09,0.0002472,2]
[385930739,1758136296744,-528.16,0.0002472,2]
[385930740,1758136296754,-400.0,0.0002472,2]
[385930741,1758136296763,-400.0,0.0002472,2]
[385930742,1758136296772,-469.84,0.0002472,2]
[385930743,1758136296781,-438.19,0.0002472,2]
[385930744,1758136296790,-400.0,0.0002472,2]
[385930745,1758136296800,-546.19,0.0002472,2]
[385930746,1758136296809,-529.3,0.0002472,2]
[385930747,1758136296818,-400.0,0.0002472,2]
[385930748,1758136296828,-777.59,0.0002472,2]
[385930749,1758136296837,-920.75338443,0.0002472,2]
[385930750,1758136296855,-2148.6,0.0002472,2]
[385930751,1758136298287,-400.0,0.00021999,2]
[385930752,1758136298297,-299.5899999,0.00021999,2]
[385930753,1758136298309,-100.4100001,0.00021999,2]
[385930754,1758136298320,-324.08932403,0.00021999,2]
[385930755,1758136298332,-75.91067597,0.00021999,2]
[385930756,1758136298343,-400.0,0.00022273,2]
[385930757,1758136298353,-303.45611537,0.00022273,2]
[385930758,1758136298469,-96.54388463,0.00022273,2]
[385930759,1758136298481,-434.3,0.00022273,2]
[385930760,1758136298491,-400.0,0.00022547,2]
[385930761,1758136298500,-400.0,0.00022547,2]
[385930762,1758136298509,-400.0,0.00022821,2]
[385930763,1758136298519,-400.0,0.00024072,2]
[385930764,1758136298528,-363.34,0.00024346,2]
[385930765,1758136298538,-367.62661557,0.0002472,2]
[385930766,1758136298547,-552.85,0.0002472,2]
[385930767,1758136298556,-426.23,0.0002472,2]
[385930768,1758136298565,-774.27,0.0002472,2]
[385930769,1758136298575,-400.0,0.0002472,2]
[385930770,1758136298584,-410.56,0.0002472,2]
[385930771,1758136298593,-1003.92,0.0002472,2]
[385930772,1758136298602,-400.0,0.0002472,2]
[385930773,1758136298611,-883.95,0.0002472,2]
[385930774,1758136298620,-437.51,0.0002472,2]
[385930775,1758136298629,-542.29,0.0002472,2]
[385930776,1758136298638,-400.0,0.0002472,2]
[385930777,1758136298648,-312.31651083,0.0002472,2]
[385930778,1758136298658,-493.58,0.0002472,2]
[385930779,1758136298667,-637.97,0.0002472,2]
[385930780,1758136298678,-452.11,0.0002472,2]
[385930781,1758136298687,-519.77,0.0002472,2]
[385930782,1758136298696,-400.0,0.0002472,2]
[385930783,1758136298706,-588.07,0.0002472,2]
[385930784,1758136298716,-649.47,0.0002472,2]
[385930785,1758136298726,-891.76,0.0002472,2]
[385930786,1758136298735,-469.72,0.0002472,2]
[385930787,1758136298744,-1782.14,0.0002472,2]
[385930788,1758136298754,-515.17,0.0002472,2]
[385930789,1758136298765,-1000.0,0.0002472,2]
[385930790,1758136298775,-1116.11,0.0002472,2]
[385930791,1758136298785,-839.98646833,0.00024721,2]
[385930792,1758136298797,-160.01353167,0.00024721,2]
[385930793,1758136298807,-629.7472495,0.00024721,2]
[385930794,1758136298830,-400.0,0.00023095,2]
[385930795,1758136298839,-370.2527505,0.00024721,2]
[385930796,1758136298848,-530.0,0.00024721,2]
[385930797,1758136298858,-400.0,0.00024721,2]
[385930798,1758136298867,-475.0,0.00024721,2]
[385930799,1758136298876,-498.42,0.00024721,2]
[385930800,1758136298886,-400.0,0.00024721,2]
[385930801,1758136298895,-400.0,0.00024721,2]
[385930802,1758136298905,-671.48,0.00024721,2]
[385930803,1758136298914,-2353.1,0.00024736,2]
[385930804,1758136298922,-701.97,0.00024738,2]
[385930805,1758136298933,-400.0,0.00024738,2]
[385930806,1758136298943,-415.4,0.00024738,2]
[385930807,1758136298953,-400.0,0.00024738,2]
[385930808,1758136298962,-400.0,0.00024738,2]
[385930809,1758136298971,-898.21,0.00024738,2]
[385930810,1758136298981,-401.69,0.00024738,2]
[385930811,1758136298990,-553.35,0.00024738,2]
[385930812,1758136299000,-1152.91721107,0.00024738,2]
[385930813,1758136299492,-400.0,0.00021917,2]
[385930814,1758136299502,-400.0,0.00021917,2]
[385930815,1758136299511,-400.0,0.00021999,2]
[385930816,1758136299520,-480.66,0.00022191,2]
[385930817,1758136299530,-223.43,0.00022273,2]
[385930818,1758136299539,-379.48272619,0.00022447,2]
[385930819,1758136299549,-400.0,0.00022821,2]
[385930820,1758136299558,-400.0,0.00023369,2]
[385930821,1758136299568,-400.0,0.00024172,2]
[385930822,1758136299577,-24.59278893,0.00024738,2]
[385930823,1758136299587,-152.644779,0.00024739,2]
[385930824,1758136299596,-160.272593,0.00024739,2]
[385930825,1758136299605,-400.0,0.00024739,2]
[385930826,1758136299615,-487.3,0.00024739,2]
[385930827,1758136299624,-400.0,0.00024739,2]
[385930828,1758136299633,-619.0,0.00024739,2]
[385930829,1758136299642,-400.0,0.00024739,2]
[385930830,1758136299652,-432.04456467,0.00024739,2]
[385930831,1758136299661,-737.53,0.00024739,2]
[385930832,1758136299670,-443.81,0.00024739,2]
[385930833,1758136299681,-493.3,0.00024739,2]
[385930834,1758136299692,-400.0,0.00024739,2]
[385930835,1758136299701,-600.69,0.00024739,2]
[385930836,1758136299710,-620.66,0.00024739,2]
[385930837,1758136299721,-522.27,0.00024739,2]
[385930838,1758136299730,-527.14140188,0.00024739,2]
[385930839,1758136299740,-409.05,0.00024739,2]
[385930840,1758136299749,-431.09,0.00024739,2]
[385930841,1758136299759,-400.0,0.00024739,2]
[385930842,1758136299769,-400.0,0.00024739,2]
[385930843,1758136299778,-400.0,0.00024739,2]
[385930844,1758136299787,-400.0,0.00024739,2]
[385930845,1758136299797,-508.41,0.00024739,2]
[385930846,1758136299806,-458.23,0.00024739,2]
[385930847,1758136299816,-413.13,0.00024739,2]
[385930848,1758136299825,-400.0,0.00024739,2]
[385930849,1758136299835,-400.0,0.00024739,2]
[385930850,1758136299844,-400.0,0.00024739,2]
[385930851,1758136299853,-530.6,0.00024739,2]
[385930852,1758136299863,-400.0,0.00024739,2]
[385930853,1758136299872,-582.21,0.00024739,2]
[385930854,1758136299881,-400.0,0.00024739,2]
[385930855,1758136299890,-400.0,0.00024739,2]
[385930856,1758136299898,-400.0,0.00024739,2]
[385930857,1758136299907,-400.0,0.00024739,2]
[385930858,1758136299915,-490.63,0.00024739,2]
[385930859,1758136299924,-530.93,0.00024739,2]
[385930860,1758136299936,-400.0,0.00024739,2]
[385930861,1758136299946,-400.0,0.00024739,2]
[385930862,1758136299955,-400.0,0.00024739,2]
[385930863,1758136299964,-400.0,0.00024739,2]
[385930864,1758136299973,-400.0,0.00024739,2]
[385930865,1758136299982,-400.0,0.00024739,2]
[385930866,1758136299992,-400.0,0.00024739,2]
[385930867,1758136300001,-436.11,0.00024739,2]
[385930868,1758136300011,-400.0,0.00024739,2]
[385930869,1758136300019,-465.08,0.00024739,2]
[385930870,1758136300029,-400.0,0.00024739,2]
[385930871,1758136300039,-400.0,0.00024739,2]
[385930872,1758136300048,-416.56,0.00024739,2]
[385930873,1758136300057,-400.0,0.00024739,2]
[385930874,1758136300066,-400.0,0.00024739,2]
[385930875,1758136300075,-547.43,0.00024739,2]
[385930876,1758136300085,-278.09728674,0.00024739,2]
[385930877,1758136300093,-400.0,0.00024739,2]
[385930878,1758136300102,-588.4,0.00024739,2]
[385930879,1758136300110,-400.0,0.00024739,2]
[385930880,1758136300119,-1198.21,0.00024739,2]
[385930881,1758136300128,-569.33,0.00024739,2]
[385930882,1758136300137,-400.0,0.00024739,2]
[385930883,1758136300146,-220.35775969,0.00024739,2]
[385930884,1758136300155,-754.49,0.00024739,2]
[385930885,1758136300164,-408.32,0.00024739,2]
[385930886,1758136300173,-520.33,0.00024739,2]
[385930887,1758136300184,-1051.19,0.00024739,2]
[385930888,1758136300193,-400.0,0.00024739,2]
[385930889,1758136300202,-400.0,0.00024739,2]
[385930890,1758136300211,-732.59,0.00024739,2]
[385930891,1758136300221,-495.89,0.00024739,2]
[385930892,1758136300230,-482.84,0.00024739,2]
[385930893,1758136300239,-400.0,0.00024739,2]
[385930894,1758136300248,-802.0,0.00024739,2]
[385930895,1758136300257,-400.0,0.00024739,2]
[385930896,1758136300266,-400.0,0.00024739,2]
[385930897,1758136300275,-519.33,0.00024739,2]
[385930898,1758136300285,-400.0,0.00024739,2]
[385930899,1758136300295,-400.0,0.00024739,2]
[385930900,1758136300304,-400.0,0.00024739,2]
[385930901,1758136300314,-424.54,0.00024739,2]
[385930902,1758136300324,-325.30228199,0.00024739,2]
[385930903,1758136300334,-400.0,0.00024739,2]
[385930904,1758136300343,-628.05,0.00024739,2]
[385930905,1758136300353,-933.74,0.00024739,2]
[385930906,1758136300362,-400.0,0.00024739,2]
[385930907,1758136300380,-465.03,0.00024739,2]
[385930908,1758136300390,-400.83,0.00024739,2]
[385930909,1758136300401,-400.0,0.00024739,2]
[385930910,1758136300413,-400.0,0.00024739,2]
[385930911,1758136300423,-466.1,0.00024739,2]
[385930912,1758136300437,-400.0,0.00024739,2]
[385930913,1758136300448,-585.96,0.00024739,2]
[385930914,1758136300458,-400.0,0.00024739,2]
[385930915,1758136300468,-493.31,0.00024739,2]
[385930916,1758136300479,-400.0,0.00024739,2]
[385930917,1758136300491,-400.0,0.00024739,2]
[385930918,1758136300501,-400.0,0.00024739,2]
[385930919,1758136300511,-907.1,0.00024739,2]
[385930920,1758136300521,-460.97,0.00024739,2]
[385930921,1758136300530,-508.35,0.00024739,2]
[385930922,1758136300540,-400.0,0.00024739,2]
[385930923,1758136300550,-444.41,0.00024739,2]
[385930924,1758136300559,-400.0,0.00024739,2]
[385930925,1758136300569,-214.1,0.00024739,2]
[385930926,1758136300578,-583.27,0.00024739,2]
[385930927,1758136300838,-783.48,0.00024739,2]
[385930928,1758136300860,-416.12,0.00024739,2]
[385930929,1758136300870,-411.93,0.00024739,2]
[385930930,1758136300879,-400.0,0.00024739,2]
[385930931,1758136300889,-400.0,0.00024739,2]
[385930932,1758136300898,-459.69,0.00024739,2]
[385930933,1758136300908,-430.75,0.00024739,2]
[385930934,1758136300917,-505.51,0.00024739,2]
[385930935,1758136300927,-400.0,0.00024739,2]
[385930936,1758136300940,-400.0,0.00024739,2]
[385930937,1758136300949,-12634.62,0.00024739,2]
[385930938,1758136300959,-400.0,0.00024739,2]
[385930939,1758136300968,-851.6,0.00024739,2]
[385930940,1758136300978,-845.47,0.00024739,2]
[385930941,1758136300987,-475.45,0.00024739,2]
[385930942,1758136300997,-820.18,0.00024739,2]
[385930943,1758136301006,-1710.32,0.00024739,2]
[385930944,1758136301016,-400.0,0.00024739,2]
[385930945,1758136301025,-777.7,0.00024739,2]
[385930946,1758136301035,-511.45,0.00024739,2]
[385930947,1758136301045,-1896.06,0.00024739,2]
[385930948,1758136301054,-1055.91,0.00024739,2]
[385930949,1758136301064,-400.0,0.00024739,2]
[385930950,1758136301073,-606.73,0.00024739,2]
[385930951,1758136301083,-586.59,0.00024739,2]
[385930952,1758136301092,-814.52,0.00024739,2]
[385930953,1758136301102,-400.0,0.00024739,2]
[385930954,1758136301115,-884.98,0.00024739,2]
[385930955,1758136301124,-3039.52,0.00024739,2]
[385930956,1758136301135,-479.7,0.00024739,2]
[385930957,1758136301145,-459.19,0.00024739,2]
[385930958,1758136301155,-400.0,0.00024739,2]
[385930959,1758136301164,-440.04,0.00024739,2]
[385930960,1758136301173,-404.2,0.00024739,2]
[385930961,1758136301184,-666.29,0.00024739,2]
[385930962,1758136301195,-433.4,0.00024739,2]
[385930963,1758136301204,-633.25,0.00024739,2]
[385930964,1758136301215,-400.0,0.00024739,2]
[385930965,1758136301224,-993.76,0.00024739,2]
[385930966,1758136301234,-528.62,0.00024739,2]
[385930967,1758136301244,-531.47,0.00024739,2]
[385930968,1758136301254,-591.57,0.00024739,2]
[385930969,1758136301264,-466.37,0.00024739,2]
[385930970,1758136301273,-400.0,0.00024739,2]
[385930971,1758136301282,-454.53,0.00024739,2]
[385930972,1758136301292,-400.0,0.00024739,2]
[385930973,1758136301302,-400.0,0.00024739,2]
[385930974,1758136301311,-570.26,0.00024739,2]
[385930975,1758136301321,-1028.27,0.00024739,2]
[385930976,1758136301331,-404.19,0.00024739,2]
[385930977,1758136301340,-400.0,0.00024739,2]
[385930978,1758136301351,-400.0,0.00024739,2]
[385930979,1758136301362,-400.0,0.00024739,2]
[385930980,1758136301372,-1862.36,0.00024739,2]
[385930981,1758136301381,-2997.36,0.00024739,2]
[385930982,1758136301390,-301.24146822,0.00024739,2]
[385930983,1758136301400,-549.38916686,0.00024739,2]
[385930984,1758136301412,-400.0,0.00024739,2]
[385930985,1758136301422,-433.76,0.00024739,2]
[385930986,1758136301432,-601.08,0.00024739,2]
[385930987,1758136301441,-520.12,0.00024739,2]
[385930988,1758136301451,-467.01,0.00024739,2]
[385930989,1758136301461,-400.0,0.00024739,2]
[385930990,1758136301470,-400.0,0.00024739,2]
[385930991,1758136301479,-470.61,0.00024739,2]
[385930992,1758136301489,-590.68,0.00024739,2]
[385930993,1758136301499,-723.81,0.00024739,2]
[385930994,1758136301509,-1622.69,0.00024739,2]
[385930995,1758136301523,-2362.3,0.00024739,2]
[385930996,1758136301533,-400.0,0.00024739,2]
[385930997,1758136301542,-463.92,0.00024739,2]
[385930998,1758136301551,-400.0,0.00024739,2]
[385930999,1758136301561,-400.0,0.00024739,2]
[385931000,1758136301570,-400.0,0.00024739,2]
[385931001,1758136301580,-804.75,0.00024739,2]
[385931002,1758136301589,-416.78,0.00024739,2]
[385931003,1758136301599,-686.88,0.00024739,2]
[385931004,1758136301609,-400.0,0.00024739,2]
[385931005,1758136301618,-406.65,0.00024739,2]
[385931006,1758136301628,-400.0,0.00024739,2]
[385931007,1758136301638,-1018.96,0.00024739,2]
[385931008,1758136301648,-686.5,0.00024739,2]
[385931009,1758136301658,-400.0,0.00024739,2]
[385931010,1758136301668,-1503.39,0.00024739,2]
[385931011,1758136301678,-190.12,0.00024747,2]
[385931012,1758136301689,-31616.873231,0.0002475,2]
[385931013,1758136301699,-500.0,0.00024773,2]
[385931014,1758136301708,-500.0,0.00024773,2]
[385931015,1758136301718,-150.0,0.00024775,2]
[385931016,1758136301728,-259.24566161,0.00024777,2]
[385931017,1758136301737,-330.41113734,0.00024778,2]
[385931018,1758136301746,-401.57661308,0.0002478,2]
[385931019,1758136301758,-472.74208881,0.00024782,2]
[385931020,1758136301767,-543.90756455,0.00024783,2]
[385931021,1758136301777,-309.93497039,0.00024784,2]
[385931022,1758136301787,-2004.55418511,0.00024784,2]
[385931023,1758136301797,-381.6676272,0.00024784,2]
[385931024,1758136301807,-724.69408199,0.00024784,2]
[385931025,1758136301817,-244.11491759,0.00024784,2]
[385931026,1758136301826,-615.07304028,0.00024785,2]
[385931027,1758136301836,-686.23851602,0.00024787,2]
[385931028,1758136301846,-757.40399175,0.00024788,2]
[385931029,1758136301856,-828.56946749,0.0002479,2]
[385931030,1758136301866,-1000.0,0.00024797,2]
[385931031,1758136301876,-368.85,0.00024797,2]
[385931032,1758136301885,-1000.01,0.00024797,2]
[385931033,1758136301895,-500.0,0.00024797,2]
[385931034,1758136301905,-400.0,0.00024798,2]
[385931035,1758136301915,-866.01,0.00024798,2]
[385931036,1758136301925,-2406.76,0.00024798,2]
[385931037,1758136301934,-219.15898945,0.00024798,2]
[385931038,1758136301944,-972.36,0.00024798,2]
[385931039,1758136301954,-541.12,0.00024798,2]
[385931040,1758136301964,-770.49,0.00024798,2]
[385931041,1758136301974,-674.56,0.00024798,2]
[385931042,1758136301985,-922.0,0.00024798,2]
[385931043,1758136301993,-400.0,0.00024798,2]
[385931044,1758136302003,-764.94,0.00024798,2]
[385931045,1758136302012,-400.0,0.00024798,2]
[385931046,1758136302022,-381.83519077,0.00024799,2]
[385931047,1758136302031,-500.0,0.00024799,2]
[385931048,1758136302041,-701.97,0.00024799,2]
[385931049,1758136302051,-2353.1,0.00024799,2]
[385931050,1758136302061,-3981.62052456,0.00024799,2]
[385931051,1758136302071,-1367.68191261,0.00024799,2]
[385931052,1758136302080,-175.67115922,0.00024799,2]
[385931053,1758136302090,-10728.06302205,0.00024799,2]
[385931054,1758136302099,-6600.0,0.000248,9]
[385931055,1758136302109,-37738.44509332,0.000248,2]
[385931056,1758136302176,-223021.51212768,0.000248,2]
[385931057,1758136302187,-168.0,0.00024815,2]
[385931058,1758136302196,-2353.1,0.00024848,2]
[385931059,1758136302206,-500.0,0.00024849,2]
[385931060,1758136302224,-701.97,0.00024849,2]
[385931061,1758136302238,-120745.41787236,0.0002485,2]
[385931062,1758136302425,-400.0,0.00021999,2]
[385931063,1758136302435,-214.66833311,0.00023643,2]
[385931064,1758136302447,-185.33166689,0.00023643,2]
[385931065,1758136302459,-565.86833467,0.0002485,2]
[385931066,1758136302471,-1109.05,0.0002485,2]
[385931067,1758136302488,-400.0,0.00021999,2]
[385931068,1758136302499,-324.87717498,0.0002485,2]
[385931069,1758136304498,150.0,0.00030136,120]
[385931076,1758136400518,500.0,0.00030136,120]
[385931081,1758136822279,2000.0,0.00027,120]
[385931123,1758136930479,157.01,0.00010524,2]
[385931155,1758137110015,23755.5776138,0.0002,2]
[385931156,1758137110045,920385.3758376,0.0002,2]
[385931157,1758137110072,9539.53,0.0002,2]
[385931158,1758137110107,105438.5427658,0.0002,2]
[385931159,1758137122368,150.0,0.00030136,120]
[385931186,1758137279093,265536.86734569,0.0002,2]
[385931192,1758137320043,150.0,0.0002,2]
[385931195,1758137324077,4794.93617899,0.0002,2]
[385931215,1758137432098,-577.45228006,0.00020197,2]
[385931216,1758137432108,-2000.0,0.000202,3]
[385931217,1758137432118,-195.0,0.000202,2]
[385931219,1758137432128,-335.61474233,0.00020202,2]
[385931220,1758137432137,-166.27361539,0.00020204,2]
[385931221,1758137432147,-2000.0,0.0002024,3]
[385931222,1758137432157,-2000.0,0.0002024,3]
[385931223,1758137432170,-2000.0,0.0002024,3]
[385931224,1758137432180,-300.0,0.00020297,2]
[385931225,1758137432190,-300.0,0.00020434,2]
[385931226,1758137432200,-1728.51416222,0.000206,2]